bitfinex/quotes_BTCUSD_20260215
["timestamp","ask_amount","ask_price","bid_price","bid_amount"]
[1771145837686,0.07094518,70477.0,70470.0,0.07115157]
[1771145838732,0.07094482,70478.0,70471.0,0.07095108]
[1771145838935,0.07094482,70478.0,70471.0,0.07080303]
[1771145839141,0.07094482,70478.0,70471.0,0.07065499]
[1771145839364,0.41134249,70480.0,70472.0,0.07094958]
[1771145839705,0.0004,70480.0,70470.0,0.0002]
[1771145839919,0.07134219,70480.0,70473.0,0.07094824]
[1771145840354,0.0004,70480.0,70474.0,0.07094789]
[1771145840562,0.0004,70480.0,70472.0,0.02263957]
[1771145840563,0.0004,70480.0,70477.0,0.0709448]
[1771145840791,0.0004,70480.0,70476.0,0.07094578]
[1771145842210,0.0004,70480.0,70477.0,0.0709449]
[1771145842424,0.2841371,70488.0,70472.0,0.30643712]
[1771145842425,0.07133449,70488.0,70479.0,0.07094311]
[1771145842550,0.41093607,70486.0,70479.0,0.07094311]
[1771145842757,0.34,70486.0,70479.0,0.07094311]
[1771145843164,4e-05,70480.0,70479.0,0.07094311]
[1771145843367,1e-08,70490.0,70482.0,0.02263957]
[1771145843612,1e-08,70490.0,70489.0,0.07093305]
[1771145843758,1e-08,70490.0,70482.0,0.02259607]
[1771145843759,1e-08,70490.0,70488.0,0.07093382]
[1771145844168,0.34,70496.0,70481.0,0.02263957]
[1771145844379,0.34,70496.0,70491.0,0.07093104]
[1771145844825,0.00046745,70492.0,70491.0,0.07093104]
[1771145845832,0.00046745,70492.0,70487.0,0.07093483]
[1771145846207,0.00046745,70492.0,70487.0,0.0935744]
[1771145846421,0.00046745,70492.0,70491.0,0.07093104]
[1771145846611,0.00046745,70492.0,70487.0,0.02263957]
[1771145846843,0.00046745,70492.0,70487.0,0.09357427]
[1771145847041,0.00046745,70492.0,70489.0,0.0935726]
[1771145847369,0.00046745,70492.0,70489.0,0.02263957]
[1771145847709,0.00046745,70492.0,70488.0,0.07093335]
[1771145847880,0.01497272,70497.0,70491.0,0.07093096]
[1771145848231,0.22037843,70496.0,70480.0,4e-05]
[1771145848431,0.90685438,70490.0,70480.0,0.02274702]
[1771145848631,0.90685438,70490.0,70486.0,0.07093442]
[1771145848632,4.5e-05,70489.0,70486.0,0.07093442]
[1771145848932,0.01497272,70497.0,70480.0,0.02274702]
[1771145848933,0.01497272,70497.0,70488.0,0.07093405]
[1771145849107,0.33996,70495.0,70483.0,0.02263957]
[1771145849241,0.33996,70495.0,70489.0,0.07093222]
[1771145849448,0.0709287,70494.0,70486.0,0.07093567]
[1771145849657,0.410888,70495.0,70486.0,0.07093567]
[1771145849925,0.410888,70495.0,70483.0,0.02263957]
[1771145849926,0.33996,70495.0,70490.0,0.07093138]
[1771145850231,0.34044999,70495.0,70490.0,0.07093138]
[1771145850616,0.34044999,70495.0,70490.0,0.02263957]
[1771145850971,0.34044999,70495.0,70488.0,0.07093393]
[1771145851150,0.34044999,70495.0,70485.0,0.02263957]
[1771145851151,0.00048999,70495.0,70491.0,0.07093036]
[1771145851358,0.00086769,70495.0,70491.0,0.09356993]
[1771145851553,0.00086769,70495.0,70491.0,0.07093036]
[1771145851792,0.00086769,70495.0,70487.0,0.02263957]
[1771145852231,0.00086769,70495.0,70484.0,0.07093741]
[1771145852232,0.09497255,70491.0,70484.0,0.07093738]
[1771145852462,0.07093264,70490.0,70483.0,0.07093894]
[1771145853038,0.33996,70492.0,70480.0,6.745e-05]
[1771145853253,0.33996,70492.0,70471.0,0.34]
[1771145853254,0.07093808,70485.0,70471.0,0.34]
[1771145853455,0.07093808,70485.0,70472.0,0.07094975]
[1771145853456,0.07094214,70480.0,70472.0,0.07094975]
[1771145853692,0.90685438,70483.0,70470.0,0.0002]
[1771145853693,0.07094676,70476.0,70470.0,0.0002]
[1771145854060,0.03608245,70475.0,70470.0,0.0002]
[1771145854260,0.03608245,70475.0,70468.0,0.07115352]
[1771145854460,0.1070296,70475.0,70468.0,0.07115352]
[1771145854882,0.03608245,70475.0,70468.0,5.195e-05]
[1771145855083,0.10702992,70475.0,70468.0,5.195e-05]
[1771145855666,0.03608245,70475.0,70467.0,0.03236977]
[1771145855874,0.03608245,70475.0,70467.0,0.03222174]
[1771145856066,0.03608245,70475.0,70468.0,0.0709534]
[1771145857806,0.03608245,70475.0,70468.0,0.0480822]
[1771145857807,0.10702976,70475.0,70468.0,0.0480822]
[1771145858037,0.10702976,70475.0,70468.0,0.04241962]
[1771145858246,4e-05,70470.0,70468.0,0.04168892]
[1771145860781,4e-05,70470.0,70469.0,0.07095318]
[1771145867826,4e-05,70470.0,70468.0,0.3002]
[1771145868036,4e-05,70470.0,70468.0,0.37115417]
[1771145869726,4e-05,70470.0,70468.0,0.3002]
[1771145870425,4e-05,70470.0,70468.0,0.37115408]
[1771145871285,4e-05,70470.0,70469.0,0.07095318]
[1771145872341,4e-05,70470.0,70468.0,0.3002]
[1771145873872,4e-05,70470.0,70468.0,0.37115388]
[1771145874294,4e-05,70470.0,70468.0,0.37115349]
[1771145875760,4e-05,70470.0,70469.0,0.07095318]
[1771145877845,4e-05,70470.0,70468.0,0.37115397]
[1771145880985,4e-05,70470.0,70469.0,0.07095318]
[1771145882642,0.00044,70470.0,70469.0,0.07095318]
[1771145883224,0.0004,70475.0,70473.0,0.07094884]
[1771145883418,0.0004,70475.0,70473.0,0.07094887]
[1771145883744,0.0004,70475.0,70468.0,0.3002]
[1771145883886,0.0004,70475.0,70472.0,0.07095003]
[1771145884759,0.0004,70475.0,70474.0,0.07094815]
[1771145885398,0.0004,70475.0,70473.0,0.07094885]
[1771145886035,0.0004,70475.0,70472.0,0.07094922]
[1771145886170,0.00044,70480.0,70477.0,0.07094473]
[1771145886369,0.00044,70480.0,70476.0,0.07094569]
[1771145886607,0.00044,70480.0,70475.0,0.07094631]
[1771145887014,0.00044,70480.0,70476.0,0.07094566]
[1771145887988,0.00044,70480.0,70468.0,0.52241893]
[1771145887989,4e-05,70470.0,70450.0,0.00025]
[1771145888172,4e-05,70470.0,70453.0,0.0002]
[1771145888173,0.07095843,70464.0,70453.0,0.0002]
[1771145888365,0.07095843,70464.0,70454.0,0.07116819]
[1771145888577,0.02293636,70466.0,70454.0,0.07116819]
[1771145889574,0.28382885,70465.0,70454.0,0.07116819]
[1771145889808,0.23373592,70469.0,70455.0,0.09594391]
[1771145889809,0.07096027,70462.0,70455.0,0.09594391]
[1771145890012,0.07096027,70462.0,70455.0,0.02497675]
[1771145890562,0.07096027,70462.0,70454.0,0.07116795]
[1771145890760,0.00469141,70461.0,70454.0,0.05797337]
[1771145890965,0.07565302,70461.0,70454.0,0.05840578]
[1771145891165,0.07565302,70461.0,70453.0,0.0002]
[1771145891166,0.07096293,70460.0,70453.0,0.0002]
[1771145891435,0.07096293,70460.0,70453.0,0.00026739]
[1771145891621,0.07096389,70459.0,70453.0,0.00026739]
[1771145892019,0.90713532,70463.0,70453.0,0.00026739]
[1771145892322,0.07095705,70466.0,70454.0,0.22221893]
[1771145892523,1.21392303,70470.0,70456.0,0.22226893]
[1771145892524,0.93011168,70470.0,70456.0,0.22226893]
[1771145892733,0.90717532,70470.0,70464.0,0.07095792]
[1771145892907,0.90717532,70470.0,70459.0,0.02442708]
[1771145892908,4e-05,70470.0,70463.0,0.07095736]
[1771145893122,4e-05,70470.0,70464.0,0.07095738]
[1771145893327,4e-05,70470.0,70463.0,0.07095736]
[1771145893849,4e-05,70470.0,70460.0,0.28384701]
[1771145893850,4e-05,70470.0,70464.0,0.07095751]
[1771145894266,4e-05,70470.0,70465.0,0.07095667]
[1771145894587,4e-05,70470.0,70464.0,0.07095751]
[1771145894793,4e-05,70470.0,70463.0,0.07095887]
[1771145895887,4e-05,70470.0,70464.0,0.07095797]
[1771145896723,4e-05,70470.0,70465.0,0.02374557]
[1771145896876,0.0001274,70474.0,70468.0,0.07095403]
[1771145897089,0.0001274,70474.0,70469.0,0.07095312]
[1771145897406,0.0001274,70474.0,70468.0,0.07095403]
[1771145897822,0.0001274,70474.0,70473.0,0.06056209]
[1771145898021,0.0001274,70474.0,70465.0,0.24206644]
[1771145898022,0.00044,70480.0,70472.0,0.07094939]
[1771145898233,0.07094332,70479.0,70469.0,0.02374557]
[1771145898434,0.07094577,70477.0,70469.0,0.07095255]
[1771145898660,0.07094991,70473.0,70465.0,0.34004]
[1771145899239,0.07095057,70472.0,70465.0,0.34004]
[1771145899733,0.07095057,70472.0,70465.0,0.41099638]
[1771145899918,0.07094931,70473.0,70466.0,0.07095603]
[1771145900666,1.13662407,70480.0,70465.0,0.34004]
[1771145900871,0.07094414,70478.0,70469.0,0.0709513]
[1771145901075,0.07094702,70476.0,70469.0,0.0709513]
[1771145901797,0.07094702,70477.0,70470.0,0.07095185]
[1771145902873,0.09356507,70478.0,70470.0,0.07095178]
[1771145903084,0.07094528,70477.0,70469.0,0.07095288]
[1771145903684,0.0709463,70476.0,70469.0,0.07095288]
[1771145903944,0.0709463,70476.0,70468.0,0.07095355]
[1771145904088,0.0709463,70476.0,70469.0,0.07095306]
[1771145904289,0.07094528,70477.0,70469.0,0.07095306]
[1771145904709,0.07094528,70477.0,70469.0,0.07115306]
[1771145904938,0.07134528,70477.0,70469.0,0.07115306]
[1771145905349,0.0004,70477.0,70469.0,0.0002]
[1771145905502,0.0004,70477.0,70472.0,0.07095015]
[1771145905703,0.0004,70477.0,70471.0,0.07095102]
[1771145906497,0.0004,70477.0,70470.0,0.07095031]
[1771145906901,0.0004,70477.0,70471.0,0.07095112]
[1771145907427,0.00044,70480.0,70472.0,0.07094985]
[1771145907630,0.07094317,70479.0,70471.0,0.07095075]
[1771145908050,0.07094486,70478.0,70470.0,0.07095182]
[1771145908610,0.90757532,70480.0,70469.0,0.28400929]
[1771145908806,0.97851768,70480.0,70471.0,0.07094926]
[1771145908983,0.90757532,70480.0,70469.0,0.0002]
[1771145909610,0.07094477,70478.0,70471.0,0.07095087]
[1771145910620,0.07094349,70479.0,70472.0,0.07095012]
[1771145911146,0.07094397,70480.0,70471.0,0.07095048]
[1771145911567,0.07094387,70479.0,70471.0,0.07095048]
[1771145912207,0.07094434,70478.0,70471.0,0.07095048]
[1771145912375,0.07094387,70479.0,70472.0,0.07094988]
[1771145913023,0.07094438,70478.0,70471.0,0.07095048]
[1771145913223,0.0709457,70477.0,70469.0,0.07115242]
[1771145913420,0.0001274,70481.0,70469.0,0.0002]
[1771145913421,0.92975533,70480.0,70469.0,0.0002]
[1771145913623,0.92975533,70480.0,70470.0,0.07095202]
[1771145914320,0.07094556,70477.0,70470.0,0.07095202]
[1771145915474,1.00069818,70480.0,70472.0,0.07094936]
[1771145915640,0.09356286,70480.0,70469.0,0.0002]
[1771145915971,0.09356269,70480.0,70473.0,0.07094907]
[1771145916266,0.09356269,70480.0,70473.0,0.07080127]
[1771145916620,0.0709441,70479.0,70472.0,0.07094976]
[1771145917023,0.0001274,70481.0,70469.0,0.21852087]
[1771145917248,0.07094213,70480.0,70473.0,0.07094857]
[1771145917593,0.0001274,70481.0,70475.0,0.07094667]
[1771145917802,0.07106908,70481.0,70474.0,0.0709479]
[1771145917956,0.0004,70480.0,70474.0,0.0709479]
[1771145918168,0.0004,70480.0,70476.0,0.07094597]
[1771145918380,0.0004,70480.0,70476.0,0.07086597]
[1771145918938,0.00083214,70480.0,70475.0,0.07094549]
[1771145919694,0.00083214,70480.0,70474.0,0.07094788]
[1771145919895,0.00083214,70480.0,70470.0,0.93093089]
[1771145920099,0.00083214,70480.0,70475.0,0.07094707]
[1771145920782,0.00083214,70480.0,70475.0,0.07079926]
[1771145922459,0.00083214,70480.0,70476.0,0.07094547]
[1771145922695,0.00083214,70480.0,70476.0,0.07079767]
[1771145923054,0.00083214,70480.0,70475.0,0.07094672]
[1771145923254,0.00083214,70480.0,70476.0,0.0709459]
[1771145923480,0.00083214,70480.0,70475.0,0.07094672]
[1771145923663,0.00083214,70480.0,70474.0,0.07094625]
[1771145923824,0.00083214,70480.0,70475.0,0.07094714]
[1771145924664,0.00083214,70480.0,70475.0,0.07094684]
[1771145924933,0.00083214,70480.0,70475.0,0.07090331]
[1771145925286,1e-08,70481.0,70480.0,0.07094211]
[1771145925495,1e-08,70481.0,70479.0,0.070943]
[1771145925907,1e-08,70481.0,70480.0,0.07094211]
[1771145926534,0.0004,70483.0,70479.0,0.070943]
[1771145926896,0.0004,70483.0,70480.0,0.07094204]
[1771145928329,0.0004,70483.0,70479.0,0.070943]
[1771145928934,0.0004,70483.0,70478.0,0.05130814]
[1771145929140,0.0004,70483.0,70480.0,0.07094138]
[1771145929340,0.0004,70483.0,70478.0,0.07094373]
[1771145930161,0.0004,70483.0,70480.0,0.07094208]
[1771145930367,0.0004,70483.0,70479.0,0.07094275]
[1771145930924,0.0004,70483.0,70480.0,0.07094177]
[1771145931129,0.0004,70483.0,70479.0,0.07094275]
[1771145931562,0.0004,70483.0,70478.0,0.0709437]
[1771145931936,0.0004,70483.0,70479.0,0.07094301]
[1771145933216,4e-05,70480.0,70479.0,0.07094301]
[1771145935655,0.06782112,70486.0,70479.0,0.07094301]
[1771145935959,0.06782112,70486.0,70477.0,0.07094452]
[1771145935960,0.06782112,70486.0,70477.0,0.02836922]
[1771145936163,0.06782112,70486.0,70478.0,0.07094412]
[1771145936816,0.07093798,70485.0,70476.0,0.07094419]
[1771145937177,0.0004,70480.0,70476.0,0.07094419]
[1771145937959,0.0004,70480.0,70478.0,0.07094337]
[1771145938157,0.0004,70480.0,70478.0,0.07094392]
[1771145941960,0.0004,70480.0,70475.0,0.22607454]
[1771145942201,0.0004,70480.0,70476.0,0.07094594]
[1771145942421,0.0004,70480.0,70477.0,0.07094417]
[1771145942628,0.06633734,70485.0,70478.0,0.07094398]
[1771145942853,0.06633734,70485.0,70476.0,0.07094594]
[1771145942854,0.07093812,70484.0,70477.0,0.070945]
[1771145943069,0.07093931,70483.0,70476.0,0.07094594]
[1771145943502,0.90677152,70486.0,70469.0,0.0002]
[1771145943738,0.09586394,70478.0,70470.0,0.07095152]
[1771145944166,0.07094523,70477.0,70470.0,0.07115152]
[1771145944382,0.09586374,70478.0,70472.0,6e-05]
[1771145944829,0.02491943,70478.0,70472.0,6e-05]
[1771145946162,0.02491943,70478.0,70471.0,0.07095117]
[1771145947036,0.02491943,70478.0,70472.0,0.07095009]
[1771145947205,0.02491943,70478.0,70471.0,0.07095084]
[1771145947409,0.02491943,70478.0,70472.0,0.0709499]
[1771145947623,0.02491943,70478.0,70470.0,0.07091463]
[1771145948024,0.07094743,70475.0,70469.0,0.0002]
[1771145948240,4e-05,70470.0,70469.0,0.0002]
[1771145950359,4e-05,70470.0,70469.0,0.07115318]
[1771145952509,0.02491943,70478.0,70471.0,0.07095054]
[1771145952947,0.02491943,70478.0,70471.0,0.07095117]
[1771145954292,0.02491943,70478.0,70474.0,0.07094754]
[1771145954522,0.02491943,70478.0,70473.0,0.07094875]
[1771145957484,0.02491943,70478.0,70472.0,0.07094836]
[1771145957485,0.02491943,70478.0,70474.0,0.07094809]
[1771145957656,0.02491943,70478.0,70473.0,0.0709488]
[1771145958067,0.07094219,70480.0,70473.0,0.0709488]
[1771145958470,0.07094182,70481.0,70473.0,0.07094915]
[1771145958687,0.07094274,70480.0,70473.0,0.07094915]
[1771145958887,0.0004,70478.0,70472.0,0.07094979]
[1771145959612,0.07134426,70478.0,70471.0,0.07095114]
[1771145960492,0.0004,70478.0,70471.0,0.07095114]
[1771145961447,0.0004,70478.0,70471.0,0.07080333]
[1771145964092,0.07134445,70478.0,70471.0,0.07080333]
[1771145967506,0.0004,70478.0,70472.0,0.07095012]
[1771145970664,0.0004,70478.0,70472.0,0.07080231]
[1771145971040,6.128e-05,70481.0,70470.0,0.20794143]
[1771145971245,0.40814309,70484.0,70476.0,0.06772904]
[1771145971448,0.40814309,70484.0,70477.0,0.07094508]
[1771145971645,0.40814309,70484.0,70476.0,0.06772904]
[1771145974510,0.40854309,70484.0,70477.0,0.07094439]
[1771145975160,0.40854309,70484.0,70481.0,0.07094012]
[1771145975161,0.32574404,70484.0,70481.0,0.07094012]
[1771145975465,0.32574404,70484.0,70481.0,6.128e-05]
[1771145975805,0.34888205,70484.0,70481.0,6.128e-05]
[1771145976214,0.34888205,70484.0,70481.0,0.0710022]
[1771145976407,0.34888205,70484.0,70481.0,6.128e-05]
[1771145976842,0.34888205,70484.0,70481.0,0.07100234]
[1771145977053,0.34888205,70484.0,70481.0,6.128e-05]
[1771145977390,0.34888205,70484.0,70481.0,0.07100043]
[1771145977556,0.34888205,70484.0,70482.0,0.07094008]
[1771145977801,0.34888205,70484.0,70481.0,0.07100043]
[1771145978147,0.34888205,70484.0,70481.0,0.07096043]
[1771145978760,0.0004,70484.0,70483.0,0.07093909]
[1771145978958,0.0004,70484.0,70483.0,0.07089556]
[1771145979621,0.0004,70484.0,70481.0,2.128e-05]
[1771145981113,0.02353801,70484.0,70481.0,2.128e-05]
[1771145984002,0.02353801,70484.0,70482.0,0.07093925]
[1771145984264,0.02353801,70484.0,70482.0,0.07079141]
[1771145984483,0.02353801,70484.0,70481.0,2.128e-05]
[1771145985561,0.0235923,70483.0,70481.0,2.128e-05]
[1771145988632,0.0235923,70483.0,70481.0,0.00022128]
[1771145988922,0.07094108,70482.0,70474.0,0.07094779]
[1771145989077,0.09459467,70482.0,70475.0,0.07094669]
[1771145989271,0.09459467,70482.0,70475.0,0.07094677]
[1771145990221,0.02365359,70482.0,70476.0,0.07094605]
[1771145990373,0.02365359,70482.0,70481.0,0.0709411]
[1771145990573,6.129e-05,70482.0,70480.0,0.07094144]
[1771145994250,6.129e-05,70482.0,70480.0,0.0707936]
[1771145995454,6.129e-05,70482.0,70479.0,0.07094279]
[1771145995455,6.129e-05,70482.0,70479.0,0.0709426]
[1771145995629,0.0004,70484.0,70477.0,0.21230896]
[1771145995840,0.0004,70484.0,70480.0,0.07094129]
[1771145996261,0.0004,70484.0,70471.0,0.0002]
[1771145996442,0.07094072,70482.0,70474.0,0.0559825]
[1771145996638,0.07094072,70482.0,70475.0,0.07094615]
[1771145996853,0.07094072,70482.0,70475.0,0.07079831]
[1771145997100,5.5e-05,70481.0,70478.0,0.070944]
[1771145997888,5.5e-05,70481.0,70477.0,0.07114487]
[1771145998440,5.5e-05,70481.0,70478.0,0.07094407]
[1771145998705,5.5e-05,70481.0,70477.0,0.0002]
[1771145999555,5.5e-05,70481.0,70477.0,0.0711451]
[1771145999706,5.5e-05,70481.0,70477.0,0.0002]
[1771146000809,0.0236473,70481.0,70477.0,0.0002]
[1771146001006,0.0236473,70481.0,70477.0,0.07114505]
[1771146001387,5.5e-05,70481.0,70477.0,0.07114505]
[1771146001616,5.5e-05,70481.0,70477.0,0.0002]
[1771146002295,5.5e-05,70481.0,70477.0,0.07114506]
[1771146003291,0.0236473,70481.0,70477.0,0.07114506]
[1771146003599,5.5e-05,70481.0,70477.0,0.07114506]
[1771146003939,5.5e-05,70481.0,70477.0,0.28397922]
[1771146004147,5.5e-05,70481.0,70479.0,0.07094242]
[1771146005161,5.5e-05,70481.0,70477.0,0.07114468]
[1771146005533,0.0236473,70481.0,70477.0,0.07114468]
[1771146006123,5.5e-05,70481.0,70477.0,0.07114468]
[1771146006850,0.06679319,70484.0,70477.0,0.07114468]
[1771146008287,0.0004,70485.0,70477.0,0.28397968]
[1771146008468,0.0004,70485.0,70479.0,0.07094311]
[1771146008895,0.0004,70485.0,70477.0,0.00016]
[1771146009208,0.0005274,70488.0,70484.0,0.07093757]
[1771146009383,0.01181205,70487.0,70485.0,0.07093648]
[1771146009627,0.01181205,70487.0,70486.0,0.07093607]
[1771146009786,0.01139674,70487.0,70486.0,0.07093607]
[1771146010578,0.01139674,70487.0,70485.0,0.07093648]
[1771146011207,0.01139674,70487.0,70486.0,0.07093607]
[1771146011600,0.01139674,70487.0,70483.0,0.070939]
[1771146011958,0.01139674,70487.0,70482.0,0.07093973]
[1771146013083,0.01179674,70487.0,70482.0,0.07093973]
[1771146014430,0.02307656,70486.0,70482.0,0.07093973]
[1771146016610,0.02307656,70486.0,70478.0,0.07094346]
[1771146017204,0.02307656,70486.0,70479.0,0.07094221]
[1771146017408,0.08273219,70487.0,70479.0,0.07094221]
[1771146017772,0.08273219,70487.0,70480.0,0.07094188]
[1771146018918,0.01179674,70487.0,70485.0,0.07093623]
[1771146019439,0.01179674,70487.0,70483.0,0.07093839]
[1771146020244,0.01179674,70487.0,70484.0,0.07093791]
[1771146020634,0.3404,70490.0,70485.0,0.07093702]
[1771146020635,0.00044,70490.0,70485.0,0.07093702]
[1771146021120,0.00044,70490.0,70486.0,0.07093603]
[1771146021333,0.00044,70490.0,70485.0,0.07093702]
[1771146021542,0.07137209,70490.0,70483.0,0.07093859]
[1771146021761,0.00044,70490.0,70484.0,0.07093727]
[1771146021981,0.00044,70490.0,70486.0,0.07093581]
[1771146022247,1e-08,70490.0,70483.0,0.07093909]
[1771146022442,0.0004,70491.0,70483.0,0.07093909]
[1771146022443,1e-08,70491.0,70489.0,0.07093305]
[1771146022598,1e-08,70491.0,70488.0,0.07093363]
[1771146023004,1e-08,70491.0,70486.0,0.07093603]
[1771146023613,1e-08,70491.0,70487.0,0.0709344]
[1771146024314,1e-08,70491.0,70488.0,0.07093399]
[1771146026359,1e-08,70491.0,70482.0,0.22467191]
[1771146026590,1e-08,70491.0,70488.0,0.29560531]
[1771146026837,1e-08,70491.0,70489.0,0.07093299]
[1771146027030,1e-08,70491.0,70489.0,0.07113299]
[1771146028504,1e-08,70491.0,70488.0,0.0709334]
[1771146028505,1e-08,70491.0,70488.0,0.0449557]
[1771146028916,0.00035276,70492.0,70489.0,0.07093299]
[1771146029297,0.00035276,70492.0,70488.0,0.0449557]
[1771146030673,0.00035276,70492.0,70484.0,0.07093733]
[1771146031063,0.07093176,70491.0,70484.0,0.07093733]
[1771146031268,0.00035276,70492.0,70485.0,0.07093681]
[1771146031611,0.00035276,70492.0,70485.0,0.07093666]
[1771146032218,0.02342932,70492.0,70485.0,0.07093666]
[1771146032629,0.02243627,70492.0,70485.0,0.07093666]
[1771146033298,0.02307656,70480.0,70477.0,0.00016]
[1771146033512,1.26372198,70491.0,70478.0,0.07094412]
[1771146033736,0.09401242,70487.0,70479.0,0.07094239]
[1771146033940,0.09401242,70487.0,70480.0,0.07094193]
[1771146033941,0.02307656,70487.0,70480.0,0.07094193]
[1771146034141,0.09401247,70487.0,70479.0,0.07094127]
[1771146034418,0.02307656,70486.0,70479.0,0.07094127]
[1771146034679,0.09401272,70486.0,70477.0,0.07110464]
[1771146034919,0.02307656,70482.0,70479.0,0.0002]
[1771146035798,0.09401686,70482.0,70479.0,0.0002]
[1771146035979,0.03237317,70481.0,70473.0,0.05049089]
[1771146036952,0.03237317,70481.0,70475.0,0.07094649]
[1771146038230,4e-05,70480.0,70475.0,0.07090649]
[1771146038427,0.07098245,70480.0,70472.0,0.07094933]
[1771146038641,0.07098245,70480.0,70472.0,0.07138164]
[1771146039732,0.07098245,70480.0,70468.0,0.28381491]
[1771146039733,0.02307656,70466.0,70460.0,4e-05]
[1771146039936,0.0235087,70466.0,70461.0,0.0711611]
[1771146040090,0.0235087,70466.0,70461.0,0.0002]
[1771146040938,0.0235087,70466.0,70461.0,0.0711608]
[1771146041789,0.0235087,70466.0,70461.0,0.0002]
[1771146041990,0.0235087,70466.0,70458.0,0.00622843]
[1771146042266,0.0235087,70466.0,70459.0,0.07096298]
[1771146042415,0.0235087,70466.0,70460.0,0.0002]
[1771146042812,0.0235087,70466.0,70460.0,0.07116194]
[1771146043012,0.0235087,70466.0,70460.0,0.0002]
[1771146043225,0.00043214,70466.0,70464.0,0.07095794]
[1771146043444,0.00043214,70466.0,70465.0,0.07095721]
[1771146043651,0.00043214,70466.0,70465.0,0.07066169]
[1771146043849,0.00043214,70466.0,70460.0,0.0002]
[1771146044454,0.00043214,70466.0,70460.0,0.07116184]
[1771146044664,0.00043214,70466.0,70447.0,0.0005]
[1771146044665,0.00486501,70457.0,70447.0,0.0005]
[1771146044919,0.00486501,70457.0,70444.0,0.28391152]
[1771146044920,0.02274782,70455.0,70444.0,0.28391152]
[1771146045101,0.02274782,70455.0,70443.0,0.28390943]
[1771146045534,0.02274782,70455.0,70448.0,0.07097411]
[1771146045939,0.02274782,70455.0,70449.0,0.07097319]
[1771146046143,0.02274782,70455.0,70449.0,0.0712336]
[1771146046364,0.02274782,70455.0,70449.0,0.0002604]
[1771146046655,0.02274782,70455.0,70452.0,0.07096966]
[1771146047043,0.02274782,70455.0,70452.0,0.07096977]
[1771146047248,0.02274782,70455.0,70452.0,0.07123017]
[1771146047398,0.00486501,70457.0,70452.0,0.07123017]
[1771146048024,0.02761283,70457.0,70452.0,0.07123017]
[1771146048292,0.20428377,70466.0,70456.0,0.21851977]
[1771146048293,0.00043214,70466.0,70456.0,0.21851977]
[1771146048496,0.28379866,70473.0,70457.0,0.21851977]
[1771146048669,0.0709542,70468.0,70460.0,0.07096139]
[1771146049543,0.08780214,70469.0,70457.0,0.21895191]
[1771146049544,0.07096192,70461.0,70457.0,0.00043214]
[1771146049746,0.02274782,70461.0,70457.0,0.00043214]
[1771146049973,0.0937101,70460.0,70457.0,0.00043214]
[1771146050206,0.02274782,70459.0,70457.0,0.00043214]
[1771146050433,0.00923609,70461.0,70454.0,0.34]
[1771146050434,0.02274782,70458.0,70454.0,0.34]
[1771146050646,0.02274782,70458.0,70454.0,0.34006739]
[1771146050847,0.02274782,70458.0,70454.0,6.739e-05]
[1771146051868,0.02274782,70459.0,70454.0,6.739e-05]
[1771146052069,0.02274782,70455.0,70454.0,6.739e-05]
[1771146052397,0.07096638,70456.0,70454.0,6.739e-05]
[1771146053243,0.07096638,70456.0,70454.0,2.739e-05]
[1771146053899,0.0937142,70456.0,70454.0,2.739e-05]
[1771146054334,0.02274782,70456.0,70454.0,2.739e-05]
[1771146054548,0.00923609,70461.0,70454.0,2.739e-05]
[1771146054979,0.00923609,70461.0,70456.0,0.0709662]
[1771146055192,0.00923609,70461.0,70458.0,0.07096348]
[1771146055392,0.00923609,70461.0,70457.0,0.07096434]
[1771146055593,0.00923609,70461.0,70454.0,2.739e-05]
[1771146055594,0.00923609,70461.0,70455.0,0.07096728]
[1771146055997,0.34004,70464.0,70455.0,0.07096728]
[1771146056198,0.34004,70464.0,70456.0,0.07096627]
[1771146056406,0.34004,70464.0,70459.0,0.07096325]
[1771146056616,0.41099472,70468.0,70460.0,0.07046128]
[1771146056867,0.34004,70468.0,70454.0,2.739e-05]
[1771146057034,0.0709617,70461.0,70454.0,2.739e-05]
[1771146057246,0.07096253,70460.0,70454.0,0.00022739]
[1771146057646,0.07096327,70459.0,70454.0,0.00022739]
[1771146057841,0.07096627,70457.0,70454.0,0.00022739]
[1771146058050,0.07096651,70456.0,70448.0,0.0709734]
[1771146058246,0.02274782,70457.0,70448.0,0.00012979]
[1771146058523,0.02274782,70457.0,70439.0,0.0002]
[1771146058524,0.02274782,70455.0,70439.0,0.0002]
[1771146058738,0.02274782,70448.0,70440.0,0.07098142]
[1771146058938,0.02274782,70448.0,70441.0,0.07098091]
[1771146059123,0.48772603,70454.0,70439.0,0.0002]
[1771146059124,0.07097071,70452.0,70439.0,0.0002]
[1771146059352,0.02274782,70454.0,70442.0,0.07097955]
[1771146059559,0.09371985,70451.0,70443.0,0.07097901]
[1771146060256,0.07097253,70450.0,70443.0,0.07097901]
[1771146060472,0.07097501,70448.0,70440.0,0.07098219]
[1771146060683,0.02274782,70447.0,70440.0,0.07098219]
[1771146060893,0.02274782,70447.0,70439.0,0.0002]
[1771146061105,0.02274782,70447.0,70433.0,0.3402423]
[1771146061106,0.28392191,70442.0,70433.0,0.0002023]
[1771146061313,0.07098567,70437.0,70430.0,0.05780571]
[1771146061497,0.01071105,70436.0,70428.0,0.07099366]
[1771146061915,0.07098743,70435.0,70428.0,0.07099366]
[1771146062141,0.01126553,70434.0,70428.0,0.07099366]
[1771146062343,0.08225464,70434.0,70424.0,0.07099774]
[1771146062562,0.01126553,70434.0,70424.0,0.07099774]
[1771146062769,0.01126553,70434.0,70423.0,0.34004]
[1771146063605,0.07099687,70426.0,70420.0,0.02428782]
[1771146063808,0.20385163,70447.0,70419.0,0.28401301]
[1771146064063,0.07098706,70436.0,70428.0,0.07099374]
[1771146064261,0.07099223,70431.0,70421.0,0.21851977]
[1771146064478,0.00167195,70430.0,70420.0,0.9317284]
[1771146064684,0.07099348,70429.0,70421.0,0.0710009]
[1771146064897,0.00167195,70428.0,70422.0,0.0710005]
[1771146065122,0.00167195,70428.0,70422.0,0.07085277]
[1771146065321,0.00167195,70428.0,70424.0,0.07099829]
[1771146065532,0.00167195,70428.0,70427.0,0.07099549]
[1771146065680,0.07098839,70435.0,70427.0,0.07099549]
[1771146065885,0.07098881,70434.0,70427.0,0.06396791]
[1771146066090,0.07098881,70434.0,70425.0,0.07099717]
[1771146066091,0.07098951,70433.0,70426.0,0.06894065]
[1771146066295,0.48776906,70444.0,70420.0,1.12609007]
[1771146066296,0.28391931,70443.0,70420.0,0.9075703]
[1771146066513,0.07098273,70440.0,70430.0,0.9784321]
[1771146066714,0.9301884,70440.0,70423.0,0.21851977]
[1771146066912,0.20385163,70438.0,70420.0,0.9075703]
[1771146067248,0.02274782,70436.0,70420.0,1.19157778]
[1771146067540,0.07099048,70432.0,70424.0,0.07099785]
[1771146067837,0.07099204,70431.0,70423.0,0.07099914]
[1771146067974,0.07099298,70430.0,70422.0,0.07099996]
[1771146068182,4e-05,70430.0,70417.0,8.9e-05]